Cogmind - Beta 13 @@@ ROGUE MODE // 2024.04.20 @ 17:49:28 Player: BagelsSniperWolf Result: Destroyed by G-47 Trooper with Particle Gun Performance ------------- Evolutions (2) 1000 Regions Visited (5) 1000 Robots Destroyed (10) 50 Value Destroyed (432) 432 Prototype IDs (2) 40 Alien Tech Used (0) 0 Bonus (0) 0 TOTAL SCORE: 2522 Bonus ------- None Cogmind --------- Core Integrity 0/550 Matter 300/300 Energy 100/100 System Corruption 2% Temperature Cool (9) Movement Core (50) Location -8/Storage Parts ------- > --- POWER (2) -------- (None) > --- PROPULSION (3) --- (None) > --- UTILITY (4) ------ Terrain Scan Processor > --- WEAPON (2) ------- (None) > --- INVENTORY (5) ---- Carbon-fiber Leg Carbon-fiber Leg Heat Sink Recoil Stabilizer Hardlight Generator Peak State ------------ > --- POWER ------------ Nuclear Core Light Nuclear Core > --- PROPULSION ------- Carbon-fiber Leg Carbon-fiber Leg Carbon-fiber Leg > --- UTILITY ---------- Heat Sink Improved Heat Sink Small Storage Unit Terrain Scan Processor > --- WEAPON ----------- Medium Laser Heavy Assault Rifle > --- INVENTORY -------- Carbon-fiber Leg Compact Wheel Compact Wheel Heat Sink Recoil Stabilizer Hardlight Generator [Rating: 26] Favorites ----------- Power Ion Engine Engine Ion Engine Power Core Light Nuclear Core Propulsion Aluminum Leg Leg Aluminum Leg Wheel Compact Wheel Utility Small Storage Unit Device Heat Sink Storage Small Storage Unit Processor Terrain Scan Processor Hackware Hacking Suite Weapon Medium Laser Energy Gun Medium Laser Ballistic Gun Heavy Assault Rifle Launcher Grenade Launcher Build | -11 -10 -10 -9 -8 -8 ------- Run | Yrd Mat Min Mat Mat Sto Slots Evolved 4 | . . . 2 2 . Power 1 | . . . 1 . . Propulsion 1 | . . . . 1 . Utility 2 | . . . 1 1 . Weapon . | . . . . . . Parts Attached 26 | 6 1 1 2 12 4 Power 4 | 1 . . 1 2 . Engine 2 | 1 . . 1 . . Core 2 | . . . . 2 . Reactor . | . . . . . . Propulsion 9 | 2 . . . 4 3 Treads . | . . . . . . Leg 7 | . . . . 4 3 Wheel 2 | 2 . . . . . Hover . | . . . . . . Flight . | . . . . . . Utility 6 | 1 . 1 . 3 1 Device 3 | . . 1 . 2 . Storage 1 | 1 . . . . . Processor 1 | . . . . 1 . Hackware 1 | . . . . . 1 Protection . | . . . . . . Artifact . | . . . . . . Weapon 7 | 2 1 . 1 3 . Energy Gun 4 | 2 . . 1 1 . Energy Cannon . | . . . . . . Ballistic Gun 2 | . . . . 2 . Ballistic Cannon . | . . . . . . Launcher 1 | . 1 . . . . Special Weapon . | . . . . . . Impact Weapon . | . . . . . . Slashing Weapon . | . . . . . . Piercing Weapon . | . . . . . . Special Melee Weapon . | . . . . . . Unidentified Prototypes . | . . . . . . Parts Lost 15 | . . . 2 3 10 Power 4 | . . . 1 1 2 Propulsion 3 | . . . . . 3 Utility 3 | . . . . . 3 Weapon 5 | . . . 1 2 2 Highest Loss Streak 7 | . . . 2 2 7 To Critical Strikes . | . . . . . . Average Slot Usage (%) 84 | . 85 95 84 82 83 Engine 6 | . 14 14 18 5 . Core 7 | . . . . 7 13 Leg 16 | . . . . 20 25 Wheel 6 | . 28 28 22 . . Device 12 | . . 10 11 13 13 Storage 9 | . 14 14 11 9 8 Processor 6 | . . . . 8 9 Energy Gun 9 | . 18 14 14 8 4 Ballistic Gun 5 | . . . . 8 5 Launcher 2 | . 9 14 7 . . Naked Turns . | . . . . . . Heaviest Build 24 | 14 15 16 21 24 24 Greatest Support 45 | 32 32 32 32 30 45 Greatest Overweight (x) 1 | . . . . 1 . Average Overweight (x) . | . . . . . . Largest Inventory Capacity 8 | 8 8 8 8 8 8 Average Capacity 7 | 6 8 8 8 8 7 Most Carried 8 | 4 6 5 4 5 8 Average Carried 4 | 2 4 5 3 3 6 Final Capacity 8 | 8 8 8 8 8 5 Final Carried 5 | 4 5 5 3 4 5 Class Distribution -------------------- 58% | Mutant 41% | Scavenger-Mutant Dominant Class ---------------- Mutant | -10/Materials Mutant | -10/Mines Mutant | -9/Materials Scavenger-Mutant | -8/Materials Scavenger-Mutant | -8/Storage Resources | -11 -10 -10 -9 -8 -8 ----------- Run | Yrd Mat Min Mat Mat Sto Matter Collected 588 | 215 . 65 50 205 53 Remotely . | . . . . . . Salvage Created 431 | . . 88 50 225 68 Parts 22 | . . 2 2 12 6 Haulers Intercepted . | . . . . . . Recyclers Shooed . | . . . . . . Parts Field Recycled . | . . . . . . Retrieved Matter . | . . . . . . Parts Self-Destructed . | . . . . . . Prevented . | . . . . . . Kills | -11 -10 -10 -9 -8 -8 ------- Run | Yrd Mat Min Mat Mat Sto Combat Hostiles Destroyed 8 | . . 2 1 4 1 Guns 8 | . . 2 1 4 1 Classes Destroyed 4 | . . 1 1 1 1 Worker 1 | . . . 1 . . Watcher 1 | . . . . . 1 Grunt 6 | . . 2 1 2 1 Sentry 2 | . . . . 2 . Best Kill Streak 2 | . . 2 2 1 2 Combat Bots Only 2 | . . 2 1 1 1 Max Kills in Single Turn 1 | . . 1 1 1 1 Gunslinging . | . . . . . . Exploded . | . . . . . . Melee . | . . . . . . Uniques/NPCs Destroyed . | . . . . . . Combat | -11 -10 -10 -9 -8 -8 -------- Run | Yrd Mat Min Mat Mat Sto Hostile Shots Fired 191 | . . 21 9 56 105 Missed 48 | . . 3 1 18 26 Damage Taken 2126 | . . 236 141 577 1172 Core 669 | . . 66 51 40 512 Absorbed by Shields . | . . . . . . Regen/Repaired (Parts) 74 | . . . . 74 . Core Remaining (%) 86 | 100 . 73 87 . . Volleys Fired 65 | . . 18 11 29 7 Largest 2 | . . 1 2 2 2 Hottest 90 | . . 50 90 90 73 Shots Fired 95 | . . 18 17 47 13 Gun 87 | . . 15 12 47 13 Cannon . | . . . . . . Launcher 8 | . . 3 5 . . Special . | . . . . . . Kinetic 36 | . . . . 29 7 Thermal 34 | . . 15 6 7 6 Explosive 8 | . . 3 5 . . Electromagnetic 17 | . . . 6 11 . Robot Hit Streak 18 | . . 10 6 18 7 Robot Miss Streak 4 | . . 2 1 4 1 Penetration Max . | . . . . . . Secondary Targets 1 | . . . . . 1 Max Gunslinging Chain 1 | . . . . . 1 Shots Hit Robots 63 | . . 13 9 31 10 Core Hits 25 | . . 4 4 11 6 Critical Kills . | . . . . . . Critical Parts Destroyed . | . . . . . . Critical Strikes 2 | . . . 1 1 . Burn 1 | . . . 1 . . Corrupt 1 | . . . . 1 . Melee Attacks . | . . . . . . Impact . | . . . . . . Slashing . | . . . . . . Piercing . | . . . . . . Sneak Attacks . | . . . . . . Combat Hostiles . | . . . . . . Follow-up Attacks . | . . . . . . Damage Inflicted 1040 | . . 161 271 435 173 Guns 841 | . . 161 114 435 131 Cannons . | . . . . . . Explosions 157 | . . . 157 . . Melee . | . . . . . . Ramming 42 | . . . . . 42 Kinetic 301 | . . . . 220 81 Thermal 487 | . . 161 200 76 50 Explosive 20 | . . . 20 . . Electromagnetic 190 | . . . 51 139 . Impact . | . . . . . . Slashing . | . . . . . . Piercing . | . . . . . . Highest Corruption 2 | . . . . 2 2 Average Corruption 1 | . . . . 1 2 Corruption Purged . | . . . . . . Corruption Blocked . | . . . . . . Effects 4 | . . . . 1 3 Message Errors 1 | . . . . . 1 Energy Discharges 1 | . . . . . 1 Parts Rejected 1 | . . . . . 1 Data Loss (minor) 1 | . . . . 1 . Overload Shots . | . . . . . . Overflow Damage 12 | . . . 12 . . Projectiles . | . . . . . . Explosions 12 | . . . 12 . . Melee . | . . . . . . Knockbacks . | . . . . . . Impact . | . . . . . . Kinetic . | . . . . . . Secondary . | . . . . . . Self-Inflicted Damage 61 | . . . 52 . 9 Shots 2 | . . . 2 . . Rammed 9 | . . . . . 9 Targets Rammed 20 | . . . . . 20 Kicked 11 | . . . . . 11 Crushed . | . . . . . . Highest Temperature 256 | . . 256 7 21 10 Average Temperature 89 | . . 142 4 12 5 Received Heat Transfer 1029 | . . 126 48 270 585 Siege Activations . | . . . . . . Robots Corrupted . | . . . . . . Combat Hostiles . | . . . . . . Parts Fried 1 | . . . . 1 . Impact Corruptions . | . . . . . . Robots Melted . | . . . . . . Combat Hostiles . | . . . . . . Parts Melted 5 | . . 2 3 . . Heat Transferred 1210 | . . 481 359 222 148 Parts Sabotaged . | . . . . . . Parts Stolen . | . . . . . . Parts Stripped . | . . . . . . Power Chain Reactions . | . . . . . . Alert | -11 -10 -10 -9 -8 -8 ------- Run | Yrd Mat Min Mat Mat Sto Peak Influence 236 | . . 90 169 204 236 Initial 85 | . . . 35 70 85 Average 108 | . . 50 100 122 152 Maximum Alert Level 1 | . . . . 1 1 Low Security (%) 94 | 100 100 100 100 96 84 Level 1 5 | . . . . 3 15 Level 2 . | . . . . . . Level 3 . | . . . . . . Level 4 . | . . . . . . Level 5 . | . . . . . . High Security . | . . . . . . Max Security . | . . . . . . Squads Dispatched 6 | . . . . 2 4 Investigation 3 | . . . . 1 2 Extermination . | . . . . . . Reinforcement 2 | . . . . 1 1 Assault . | . . . . . . Garrison 1 | . . . . . 1 Intercept . | . . . . . . Searches Triggered . | . . . . . . Construction Impeded . | . . . . . . Haulers Reinforced . | . . . . . . Active Scanning Responses . | . . . . . . Cargo Convoy Interrupts . | . . . . . . Stealth | -11 -10 -10 -9 -8 -8 --------- Run | Yrd Mat Min Mat Mat Sto Distress Signals 4 | . . . . 2 2 Communications Jammed . | . . . . . . Distress Signals . | . . . . . . Times Spotted 33 | . . 2 1 9 21 Peak Tracking Total 12 | . . 2 1 3 12 Tactical Retreats 4 | . . . . 1 3 Traps | -11 -10 -10 -9 -8 -8 ------- Run | Yrd Mat Min Mat Mat Sto Traps Triggered 2 | . . . . 1 1 Indirectly . | . . . . . . Trap Hack Attempts . | . . . . . . Triggered . | . . . . . . Disarmed . | . . . . . . Reprogrammed . | . . . . . . Reused . | . . . . . . Traps Extracted . | . . . . . . Installed . | . . . . . . Triggered . | . . . . . . Machines | -11 -10 -10 -9 -8 -8 ---------- Run | Yrd Mat Min Mat Mat Sto Machines Disabled 6 | . . 2 4 . . Max in Single Turn 2 | . . 1 2 . . Machines Repaired . | . . . . . . Machines Dismantled . | . . . . . . Machines Sabotaged . | . . . . . . Overloaded Fab Kills . | . . . . . . Hacking | -11 -10 -10 -9 -8 -8 --------- Run | Yrd Mat Min Mat Mat Sto Machines Accessed 7 | . 1 . . 4 2 Terminals 6 | . 1 . . 3 2 Fabricators . | . . . . . . Repair Stations 1 | . . . . 1 . Recycling Units . | . . . . . . Scanalyzers . | . . . . . . Garrison Access . | . . . . . . Total Hacks 23 | . 3 . . 12 8 Successful 10 | . . . . 6 4 Failed 13 | . 3 . . 6 4 Catastrophic 1 | . . . . 1 . Database Lockouts . | . . . . . . Manual 3 | . . . . . 3 Terminals 20 | . 3 . . 9 8 Fabricators . | . . . . . . Repair Stations 3 | . . . . 3 . Recycling Units . | . . . . . . Scanalyzers . | . . . . . . Garrison Access . | . . . . . . Terminal Hacks 8 | . . . . 4 4 Record 3 | . . . . 1 2 Prototype ID Bank 1 | . . . . 1 . Alert Level 1 | . . . . 1 . Locate Traps 1 | . . . . . 1 Zone Layout 2 | . . . . 1 1 Fabricator Hacks . | . . . . . . Repair Station Hacks 2 | . . . . 2 . Scan Component 1 | . . . . 1 . Repair 1 | . . . . 1 . Recycling Unit Hacks . | . . . . . . Scanalyzer . | . . . . . . Garrison Access Hacks . | . . . . . . Unauthorized Hacks . | . . . . . . Terminals . | . . . . . . Fabricators . | . . . . . . Repair Stations . | . . . . . . Recycling Units . | . . . . . . Scanalyzers . | . . . . . . Garrison Access . | . . . . . . Data Cores Recovered . | . . . . . . Used . | . . . . . . Hacking Detections 6 | . 1 . . 3 2 Full Trace Events 4 | . 1 . . 1 2 Feedback Events 1 | . . . . 1 . Corruption 1 | . . . . 1 . Feedback Blocked . | . . . . . . Robot Schematics Acquired . | . . . . . . Robots Built . | . . . . . . Authchips . | . . . . . . Time . | . . . . . . Total Robot Build Rating . | . . . . . . Part Schematics Acquired . | . . . . . . Parts Built . | . . . . . . Authchips . | . . . . . . Time . | . . . . . . Total Part Build Rating . | . . . . . . Parts Repaired 1 | . . . . 1 . Time 26 | . . . . 26 . Parts Recycled . | . . . . . . Recycled Matter . | . . . . . . Retrieved Matter . | . . . . . . Retrieved Components . | . . . . . . Parts Scanalyzed . | . . . . . . Part Schematics Acquired . | . . . . . . Parts Damaged . | . . . . . . Bothacking | -11 -10 -10 -9 -8 -8 ------------ Run | Yrd Mat Min Mat Mat Sto Used RIF Installer . | . . . . . . Robots Hacked . | . . . . . . Non-combat . | . . . . . . Combat . | . . . . . . Robot Hacks Applied . | . . . . . . Relay Couplers Released . | . . . . . . Fabnet Peak Effective % . | . . . . . . Robots Rewired . | . . . . . . Allies Hacked . | . . . . . . Hacks Repelled . | . . . . . . Allies | -11 -10 -10 -9 -8 -8 -------- Run | Yrd Mat Min Mat Mat Sto Total Allies . | . . . . . . Largest Group . | . . . . . . Highest-Rated Group . | . . . . . . Highest-Rated Ally . | . . . . . . Total Orders . | . . . . . . Ally Attacks . | . . . . . . Total Damage . | . . . . . . Kills . | . . . . . . Allies Corrupted . | . . . . . . Allies Melted . | . . . . . . Intel | -11 -10 -10 -9 -8 -8 ------- Run | Yrd Mat Min Mat Mat Sto Robot Analysis Total . | . . . . . . Derelict Logs Recovered . | . . . . . . Drone Launches . | . . . . . . Drone Recoveries . | . . . . . . Exploration | -11 -10 -10 -9 -8 -8 ------------- Run | Yrd Mat Min Mat Mat Sto Turns Passed 881 | 54 27 115 72 371 242 Spaces Moved 498 | 38 25 78 42 163 152 Core 10 | 7 . . . . 3 Treads . | . . . . . . Legs 312 | . . . . 163 149 Wheels 176 | 31 25 78 42 . . Hover . | . . . . . . Flight . | . . . . . . Fastest Speed 50 | 50 100 100 100 120 50 Average Speed 113 | 90 100 100 100 125 118 Slowest Speed 190 | 100 100 100 100 190 120 Overloaded Moves . | . . . . . . Propulsion Burnouts . | . . . . . . Robots Hopped . | . . . . . . Cave-ins Triggered . | . . . . . . Exploration Rate (%) 17 | 4 5 32 9 17 38 Regions Visited 5 Branch Regions 2 Pre-discovered Areas . | . . . . . . Known Exits Taken . | . . . . . . Unknown Exits Taken 5 | 1 1 1 1 1 . Scrap Searched . | . . . . . . Spaces Dug . | . . . . . . Terrain Destroyed 107 | . . 10 97 . . Melee . | . . . . . . Projectile . | . . . . . . AOE 107 | . . 10 97 . . Terrain Rammed . | . . . . . . Walls Destroyed . | . . . . . . Machines Disabled . | . . . . . . Actions | -11 -10 -10 -9 -8 -8 --------- Run | Yrd Mat Min Mat Mat Sto Total 714 | 57 27 96 55 281 198 Wait 79 | 4 . . 1 69 5 Move 493 | 37 24 77 41 162 152 Hop . | . . . . . . Pick Up 27 | 10 1 . . 9 7 Fast Attach 1 | . . 1 . . . Attach 18 | 6 1 . 2 8 1 Detach 1 | . 1 . . . . Swap 7 | . . . . 4 3 Drop 3 | . . . . . 3 Fire 65 | . . 18 11 29 7 Melee . | . . . . . . Ram 9 | . . . . . 9 Kick 11 | . . . . . 11 Crush . | . . . . . . Escape Stasis . | . . . . . . Rewire . | . . . . . . Trap . | . . . . . . Miscellaneous . | . . . . . . Route ------- -11/Scrapyard -10/Materials -10/Mines -9/Materials -8/Materials -8/Storage (discovered 1 exit: [Fac]) History --------- Turn | Location | Event 18 | -11/Scrapyard | Discovered new exit (range 15) 55 | -11/Scrapyard | Entered Materials 55 | -10/Materials | Discovered new exit (range 7) 82 | -10/Materials | Entered Mines 121 | -10/Mines | Met a Derelict bent on vengeance 182 | -10/Mines | Discovered new exit (range 12) 197 | -10/Mines | Entered Materials 197 | -9/Materials | Evolved 2 slots: Power x1, Utility x1 260 | -9/Materials | Discovered new exit (range 9) 269 | -9/Materials | Entered another Materials area 269 | -8/Materials | Evolved 2 slots: Propulsion x1, Utility x1 317 | -8/Materials | Build established: Mutant 551 | -8/Materials | Repaired Aluminum Leg 621 | -8/Materials | Discovered new exit (range 10) 640 | -8/Materials | Entered Storage 721 | -8/Storage | Build established: Scavenger-Mutant 774 | -8/Storage | Garrison activated, responded to threat 818 | -8/Storage | Lost 3 parts (1p2w) 818 | -8/Storage | Discovered new exit (range 16) 873 | -8/Storage | Core integrity fell below 50% 878 | -8/Storage | Core integrity fell below 20% 882 | -8/Storage | Destroyed by G-47 Trooper with Particle Gun Last Messages --------------- K-01 Serf cleans the Storage Shell. W-25 Informer sends out distress signal. Kicked G-47 Trooper out of the way. Kicked G-47 Trooper. Kicked G-47 Trooper out of the way. Kicked G-47 Trooper. Nuclear Core destroyed. Carbon-fiber Leg destroyed. Kicked G-47 Trooper. Carbon-fiber Leg destroyed. Kicked G-47 Trooper. Heat Sink destroyed. Carbon-fiber Leg destroyed. Slammed into G-47 Trooper. Sml. Storage Unit destroyed. Hacking Suite destroyed. Slammed into G-47 Trooper. Terrain Scan Processor broken. Destabilizing: Short circuit. Slammed into G-47 Trooper. Map ----- +----------------------------------------------------+ | ??????????????????????????????????? | | ??????????????????????????????????? | | ??????????????????????????????????? | | ??????????????????????????????????? | | ??????????????????????????????????? | | ??????????????????????????????????? | | ??????????????????????????????????? | | ??????????????????????????????????? | | ??????????????????????????????????? | | ??????????????????????????????????? | | ???????????????????????? ???????? | | ???????????????????????? #??????? | | ???????????????????????? #??????? | | ???????????????????????# #??????? | | ???????????????????????# #??????? | | ???????????????????????# #??????? | | ???????????????????????# #??????? | | ???????????????????????# #??????? | | ???????????????????????# #??????? | | ???????????????????????# #??????? | | " #?# #?????????????# #??????? | | " ### #???########### #??????? | | """ + #???# %%% # #??????? | | ### #???# """ %% # #??????? | | ######?# #???# " """"gg# gu#??????? | | #?????# #???# " "" "=gYg@ #??????? | | ]#????## #???# " "" "g # +??????? | | ]#????#T ##### """" " # #??????? | | ##????## + """ # #??????? | | #??????# ##### # #??????? | | ######## #???##+######## #??????? | | #????# #??????# #??????? | | #### #????# ######## #??????? | | # #????# # """ # #??????? | | # ####?# # """ # #??????? | | # ##T### # """ # #??????? | | + + # #??????? | | # # # #??????? | | # """ """ # # #??????? | | +### """ "Y" # ###### #??????? | | ### """ ###????# ???????? | | #??????# ???????? | | ! #??????# < ???????? | | +## ######+####??????# ???????? | | ##### #??????####???????? | | #???# ##????????????????? | | #???# #????????????????? | | #???# ##????????????????? | | ###???###########?????????????????? | | | +----------------------------------------------------+ Best States ------------- Heat Dissipation 55 Energy Generation 23 Energy Capacity 400 Matter Stores 300 Matter Capacity 300 Sight Range 16 Terrain Scan Density 85 Evasion (%) 55 Offensive Hacking 10 Item Schematics ----------------- None Robot Schematics ------------------ None Fabricated ------------ Nothing Alien Tech Used ----------------- None Achievements -------------- None Challenges ------------ None Game ------ Seed ScanRecoilRay Manual? 0 Play Time 00:20:44 Cumulative 10.6 hours Start 2024.04.20 @ 17:22:56 End 2024.04.20 @ 17:49:28 Sessions 1 Manual Loads 0 Difficulty Rogue Special Mode None Game No. 17 Rogue 17 Adventurer 0 Explorer 0 Win Type - Total 0 Types 0/0/0/0/0/0/0/0/0 Lore% 7 Gallery% 13 Achievement% 14 Wizard Run 0 Options --------- Layout 0 ASCII 0 Keyboard 0 Movement Mouse Keybinds 0 Fullscreen 1 Font 18/SmallcapsGlow Map View 76x50 Zoom Use 0% Tactical HUD 0 Map Filters NONE Filters NONE Steam 1 RUN: 0ade51bb-d511-4d67-9c94-71d6e813e2fa